[Event "28th Hit Open-A 2024"]
[Site "Nova Gorica"]
[Date "2024.01.28"]
[Round "4.22"]
[White "Hrescak, Ivana"]
[Black "Gaal, Zsoka"]
[Result "1/2-1/2"]
[ECO "D36"]
[WhiteElo "2117"]
[BlackElo "2341"]
[Annotator "TA"]
[PlyCount "111"]
[EventDate "2024.01.22"]
[EventType "swiss"]
[EventCountry "SLO"]
[SourceTitle "playchess.com"]
[Source "ChessBase"]
[SourceQuality "1"]
[TimeControl "5400+30"]

{[%evp 18,111,22,11,26,18,23,24,45,31,40,27,52,50,55,6,39,43,37,0,1,-15,-11,-12,7,0,5,0,0,-47,0,-14,-31,-8,-20,-24,-14,-17,-14,-54,-27,-24,-19,-42,-44,-51,-39,-49,-51,-147,-61,-74,-69,-102,-100,-138,-154,-150,-146,-154,-143,-151,-55,-38,0,-33,0,0,0,0,0,-13,0,0,0,0,0,0,206,206,202,0,0,0,0,0,0,0,0,0,0,0,0,0,0,-1330]} 1. c4 {[%emt 0:02:43]} e6 {[%emt 0:01:34]} 2. Nc3 {[%emt 0:01:42]} d5 {[%emt 0:03:32]} 3. d4 {[%emt 0:00:06]} Nf6 {[%emt 0:03:00]} 4. cxd5 {[%emt 0:00:36]} exd5 {[%emt 0:00:08]} 5. Bg5 {[%emt 0:00:05]} Be7 {[%emt 0:01:09]} 6. e3 {[%emt 0:00:05]} h6 {[%emt 0:03:44]} 7. Bh4 {[%emt 0:01:26]} c6 {[%emt 0:00:35]} 8. Qc2 {[%emt 0:00:14]} O-O {[%emt 0:06:31]} 9. Bd3 {[%emt 0:00:18]} a5 {[%emt 0:01:31]} 10. Nge2 {[%emt 0:01:58]} Na6 {[%emt 0:06:48]} 11. a3 {[%emt 0:00:10]} Nc7 {[%emt 0:01:01]} 12. O-O {[%emt 0:01:55]} Nfe8 {[%emt 0:00:24]} 13. Bg3 {[%emt 0:01:46]} Nd6 {[%emt 0:00:10]} 14. Na4 {[%emt 0:01:25]} Na6 {[%emt 0:05:14]} 15. Rac1 {[%emt 0:04:47]} b5 {[%emt 0:01:51]} 16. Nc5 {[%emt 0:04:25]} ({Inferior is} 16. Qxc6 Bb7 17. Qc2 bxa4 $17) (16. Bxd6 $14 {might be stronger.} Qxd6 17. Nc5 (17. Qxc6 Qxc6 18. Rxc6 bxa4 $17) (17. Nb6 Rb8 $14)) 16... Nc4 {[%emt 0:06:35]} 17. Nxa6 {[%emt 0:02:47]} Rxa6 {[%emt 0:08:35]} 18. e4 {[%emt 0:01:36]} a4 {[%emt 0:02:27]} 19. Bxc4 {[%emt 0:05:53]} bxc4 {[%emt 0:01:50]} 20. Nc3 {[%emt 0:02:41]} Qa5 {[%emt 0:03:00]} 21. Rce1 {[%emt 0:05:49]} Be6 {[%emt 0:06:39]} 22. Re2 {[%emt 0:06:04]} Rd8 {[%emt 0:04:37]} 23. Kh1 {[%emt 0:05:35]} (23. Be5 $11 {is more appropriate.}) 23... Bf6 {[%emt 0:04:21]} (23... dxe4 $15 {is superior.} 24. Rd1 f5) 24. exd5 {[%emt 0:13:31]} cxd5 {[%emt 0:00:58]} 25. Be5 {[%emt 0:00:08]} Be7 {[%emt 0:05:10]} 26. Re3 {[%emt 0:02:07]} f6 {[%emt 0:05:02]} 27. Bf4 {[%emt 0:04:15]} Bf8 $1 {[%emt 0:01:07]} 28. Rg3 {[%emt 0:12:45]} Kh8 {[%emt 0:00:18]} 29. Qg6 {[%emt 0:01:29]} Rd7 $1 {[%emt 0:00:26]} 30. Re1 {[%emt 0:01:10]} Bf7 {[%emt 0:00:58]} 31. Qg4 {[%emt 0:00:07]} Qd8 {[%emt 0:00:42]} 32. Qf5 {[%emt 0:04:41]} Rb7 {[%emt 0:00:43]} 33. Qc2 {[%emt 0:01:27]} (33. Bc1 $15) 33... Qd7 {[%emt 0:00:35]} (33... Qb6 $17 34. Bc1 Qxd4) 34. Bc1 {[%emt 0:05:42]} Rb3 {[%emt 0:01:05]} 35. Ne2 {[%emt 0:01:58]} Re6 {[%emt 0:02:00]} 36. Rxb3 {[%emt 0:01:23]} cxb3 {[%emt 0:00:11]} 37. Qd3 {[%emt 0:00:22] [#]} Qe8 $1 {[%emt 0:02:14]} 38. Be3 {[%emt 0:00:04]} Bg6 {[%emt 0:00:17]} 39. Qd2 {[%emt 0:00:19]} Bd6 {[%emt 0:03:42]} ({Black should try} 39... Rc6 $17 {aiming for ...Rc2.} 40. Nc3 Rc4) 40. Nc3 {[%emt 0:00:49]} f5 {[%emt 0:00:44]} 41. f3 {[%emt 0:02:01]} Qd8 {[%emt 0:02:39]} 42. Bf2 {[%emt 0:00:57]} Rxe1+ {[%emt 0:01:54]} 43. Qxe1 {[%emt 0:00:01]} Qd7 {[%emt 0:00:56]} 44. Qe2 {[%emt 0:02:00]} f4 {[%emt 0:01:36]} 45. Nxd5 {[%emt 0:00:14]} Bxa3 {[%emt 0:02:00]} (45... Qf5 $5 46. Nc3 $8 Qc2 $11) 46. Nxf4 {[%emt 0:00:50]} Bc2 {[%emt 0:01:20]} 47. bxa3 {[%emt 0:00:42]} Qf5 $2 {[%emt 0:00:11]} (47... Qb7 $1 $11 {and Black stays safe.} 48. Qe8+ Kh7) 48. Qe8+ $18 {[%emt 0:00:33]} Kh7 {[%emt 0:00:05]} 49. Ne6 $2 {[%emt 0:00:05]} (49. Qb8 $18) 49... b2 $11 {[%emt 0:01:47]} 50. Nf8+ {[%emt 0:00:04]} Kg8 {[%emt 0:00:51]} 51. Ne6+ {[%emt 0:00:18]} Kh7 {[%emt 0:00:05]} 52. Nf8+ {[%emt 0:00:06]} Kg8 {[%emt 0:00:08]} 53. Ne6+ {[%emt 0:00:28]} Kh7 {[%emt 0:00:06]} 54. Nf8+ {[%emt 0:00:11]} Kg8 {[%emt 0:00:20]} 55. Ng6+ {[%emt 0:00:06]} Kh7 56. Ne7 $2 {[%emt 0:00:02][%mdl 8192]} (56. Nf8+ $11 Qxf8 57. Qxf8) 1/2-1/2

[Event "28th Hit Open-A 2024"]
[Site "Nova Gorica"]
[Date "2024.01.28"]
[Round "4.23"]
[White "Szegedy, Matyas"]
[Black "Ongut, Tamas Gunes"]
[Result "1-0"]
[ECO "B06"]
[WhiteElo "2129"]
[BlackElo "2310"]
[Annotator "TA"]
[PlyCount "73"]
[EventDate "2024.01.22"]
[EventType "swiss"]
[EventCountry "SLO"]
[SourceTitle "playchess.com"]
[Source "ChessBase"]
[SourceQuality "1"]
[TimeControl "5400+30"]

{[%evp 9,73,21,30,24,27,24,20,18,33,41,50,56,87,86,100,100,156,161,208,190,180,167,210,204,315,172,261,253,246,221,264,272,272,273,281,272,450,314,319,296,391,380,371,377,403,377,382,347,365,363,543,427,524,522,1021,1033,1075,1047,5003,2737,29988,29989,29989,29990,29995,577]} 1. e4 {[%emt 0:00:08]} g6 {[%emt 0:01:26]} 2. d4 {[%emt 0:00:21]} Bg7 {[%emt 0:00:10]} 3. Nc3 {[%emt 0:00:29]} d6 {[%emt 0:00:13]} 4. Bc4 {[%emt 0:00:59]} a6 {[%emt 0:00:09]} 5. a4 {[%emt 0:01:29]} Nc6 {[%emt 0:00:11]} 6. Be3 {[%emt 0:07:37]} Nf6 {[%emt 0:00:29]} 7. f3 {[%emt 0:00:13] Verhindert Ng4.} O-O {[%emt 0:04:35]} 8. Nge2 {[%emt 0:02:09] Die Stellung ist ausgeglichen.} e6 {[%emt 0:01:48]} 9. Ba2 {[%emt 0:09:05]} Nb4 {[%emt 0:00:48]} 10. Bb3 {[%emt 0:01:07]} Re8 {[%emt 0:09:50]} 11. Qd2 {[%emt 0:02:33]} e5 {[%emt 0:00:13]} 12. d5 {[%emt 0:03:20]} c6 {[%emt 0:06:50] [#]} (12... Rb8 $142) 13. a5 $1 $16 {[%emt 0:09:04]} cxd5 {[%emt 0:02:39]} (13... b5 $142 14. axb6 c5) 14. Bb6 {[%emt 0:21:04]} Qe7 {[%emt 0:00:24]} 15. exd5 {[%emt 0:00:05]} ({Jedoch nicht} 15. Bxd5 $6 Nbxd5 16. Nxd5 Nxd5 17. Qxd5 Be6 $11) 15... e4 {[%emt 0:00:39]} 16. O-O {[%emt 0:02:39] Nxe4 ist eine echte Drohung.} e3 {[%emt 0:05:30]} (16... Nd7 $142) 17. Qe1 {[%emt 0:00:43]} (17. Qd4 $142) 17... Bf5 {[%emt 0:04:14] [#]} (17... Bd7 {ist eine bessere Verteidigung.}) 18. Ra4 $1 $18 {[%emt 0:03:11]} Nxc2 {[%emt 0:02:44]} 19. Qd1 {[%emt 0:01:28]} Rac8 {[%emt 0:02:37]} 20. Bxc2 {[%emt 0:01:23]} Bxc2 {[%emt 0:02:57]} 21. Qxc2 {[%emt 0:00:08]} Nxd5 {[%emt 0:00:04]} 22. Re4 {[%emt 0:01:27]} Nxc3 $2 {[%emt 0:01:08]} (22... Qd7 23. Qd3 Nxb6) 23. bxc3 {[%emt 0:02:57]} Qd7 {[%emt 0:00:55]} 24. Qd3 {[%emt 0:10:10]} d5 {[%emt 0:01:30]} 25. Rxe3 {[%emt 0:00:41]} ({Bloß nicht} 25. Bxe3 Qd6 26. Rd1 Red8 $18) 25... Rxe3 {[%emt 0:00:22]} 26. Bxe3 {[%emt 0:01:07]} ({Viel schwächer ist} 26. Qxe3 Qb5 27. Rd1 Re8 $18) 26... Qa4 {[%emt 0:01:03]} 27. Bb6 {[%emt 0:05:13]} Re8 {[%emt 0:00:28]} 28. Nd4 {[%emt 0:00:45][%cal Be2d4,Bd4c2,Bc2e3,Be3d5][%mdl 32]} Qa2 {[%emt 0:00:16]} 29. f4 {[%emt 0:00:44][%cal Bf3f4,Bf4f5][%mdl 32]} Bh6 {[%emt 0:04:00]} (29... Bf6 $142 30. f5 g5) 30. Nc2 {[%emt 0:01:23]} Bg7 {[%emt 0:05:15]} 31. Ne3 {[%emt 0:01:42]} h5 {[%emt 0:02:44]} 32. f5 {[%emt 0:00:37]} d4 {[%emt 0:02:49]} 33. Bxd4 {[%emt 0:00:43]} Bxd4 {[%emt 0:00:45]} 34. Qxd4 {[%emt 0:00:17]} Qxa5 {[%emt 0:00:37]} 35. fxg6 {[%emt 0:00:16] Weiß setzt Matt.} fxg6 {[%emt 0:00:09]} 36. Nd5 {[%emt 0:00:15]} Rd8 {[%emt 0:00:34]} 37. Ne7+ {[%emt 0:00:27] Weiß übernahm nach der Eröffnung die Kontrolle.   Gewichteter Fehlerwert: Weiß=0.21 (präzise) /Schwarz=0.62.  Fehler:       	Weiß=1     	Schwarz=6     Ungenau:       	Weiß=1     	Schwarz=3     OK:         	Weiß=9     	Schwarz=5     Bester:       	Weiß=3     	---        Stark:        	Weiß=2     	---} 1-0

[Event "28th Hit Open-A 2024"]
[Site "Nova Gorica"]
[Date "2024.01.28"]
[Round "4.24"]
[White "Centrih, Aleks"]
[Black "Zupancic, Jernej"]
[Result "0-1"]
[ECO "B52"]
[WhiteElo "2082"]
[BlackElo "2211"]
[Annotator "RC"]
[PlyCount "64"]
[EventDate "2024.01.22"]
[EventType "swiss"]
[EventCountry "SLO"]
[SourceTitle "playchess.com"]
[Source "ChessBase"]
[SourceQuality "1"]
[TimeControl "5400+30"]

1. e4 {[%emt 0:00:45]} c5 {[%emt 0:00:13]} 2. Nf3 {[%emt 0:00:15]} d6 {[%emt 0:00:11]} 3. Bb5+ {[%emt 0:00:07]} Bd7 {[%emt 0:00:07]} 4. Bxd7+ {[%emt 0:00:07]} Qxd7 {[%emt 0:00:08]} 5. O-O {[%emt 0:00:32]} Nc6 {[%emt 0:00:06]} 6. c4 {[%emt 0:01:02]} Nf6 {[%emt 0:00:28]} 7. Nc3 {[%emt 0:00:10]} e6 {[%emt 0:00:19]} 8. d4 {[%emt 0:00:24]} cxd4 {[%emt 0:00:11]} 9. Nxd4 {[%emt 0:00:03]} Be7 {[%emt 0:00:15]} 10. b3 {[%emt 0:02:40]} O-O {[%emt 0:00:43]} 11. Bb2 {[%emt 0:02:54]} Rfd8 {[%emt 0:09:19]} 12. Re1 {[%emt 0:06:19]} a6 {[%emt 0:10:23]} 13. Nxc6 {[%emt 0:26:09]} bxc6 {[%emt 0:16:43]} 14. Qf3 {[%emt 0:00:28]} e5 {[%emt 0:02:17]} 15. Ne2 {[%emt 0:21:32]} Qc7 {[%emt 0:09:02]} 16. Ng3 {[%emt 0:00:16]} g6 {[%emt 0:01:22]} 17. Qc3 {[%emt 0:08:18]} Nd7 {[%emt 0:02:22]} 18. f4 {[%emt 0:01:27]} a5 {[%emt 0:12:50]} 19. Kh1 {[%emt 0:03:20]} Rab8 {[%emt 0:08:13]} 20. Rf1 {[%emt 0:04:36]} f6 {[%emt 0:05:39]} 21. Qf3 {[%emt 0:07:29]} a4 {[%emt 0:01:26]} 22. Qg4 {[%emt 0:07:22]} Kh8 {[%emt 0:01:22]} 23. Bc3 {[%emt 0:01:43]} axb3 {[%emt 0:11:04]} 24. axb3 {[%emt 0:00:01]} Nc5 {[%emt 0:00:19]} 25. f5 {[%emt 0:02:42]} Qd7 {[%emt 0:01:14]} 26. b4 {[%emt 0:01:48]} Nd3 {[%emt 0:00:27]} 27. Rab1 {[%emt 0:00:29]} d5 {[%emt 0:02:42]} 28. cxd5 {[%emt 0:00:58]} cxd5 {[%emt 0:00:01]} 29. exd5 {[%emt 0:00:30]} g5 {[%emt 0:00:19]} 30. Ne4 {[%emt 0:00:31]} Qxd5 {[%emt 0:00:59]} 31. Rbd1 {[%emt 0:00:29]} Rbc8 {[%emt 0:01:44]} 32. Nxg5 {[%emt 0:00:33]} Nf2+ {[%emt 0:00:51]} 0-1

[Event "28th Hit Open-A 2024"]
[Site "Nova Gorica"]
[Date "2024.01.28"]
[Round "4.25"]
[White "Labrovic, Jakov"]
[Black "Mihelj, Edvard"]
[Result "1-0"]
[ECO "A40"]
[WhiteElo "1925"]
[BlackElo "1618"]
[Annotator "NA RC"]
[PlyCount "53"]
[EventDate "2024.01.22"]
[EventType "swiss"]
[EventCountry "SLO"]
[SourceTitle "playchess.com"]
[Source "ChessBase"]
[SourceQuality "1"]
[TimeControl "5400+30"]

1. d4 {[%emt 0:00:03]} g6 {[%emt 0:00:31]} 2. Bf4 {[%emt 0:00:11]} d6 {[%emt 0:00:53]} 3. e4 {[%emt 0:00:13]} b6 {[%emt 0:00:27]} 4. Nc3 {[%emt 0:00:59]} Bb7 {[%emt 0:00:34]} 5. h4 {[%emt 0:01:06]} e6 {[%emt 0:02:38]} 6. Qd2 {[%emt 0:00:22]} h5 {[%emt 0:01:05]} 7. O-O-O {[%emt 0:00:39]} Bg7 {[%emt 0:01:47]} 8. f3 {[%emt 0:00:34]} a6 {[%emt 0:00:49]} 9. d5 {[%emt 0:05:11]} e5 {[%emt 0:00:48]} 10. Bg5 {[%emt 0:00:41]} Bh6 {[%emt 0:03:54]} 11. Nh3 {[%emt 0:02:28]} f6 {[%emt 0:01:33]} 12. Bxh6 {[%emt 0:01:19]} Nxh6 {[%emt 0:00:24]} 13. Be2 {[%emt 0:00:10]} Nf7 {[%emt 0:00:51]} 14. f4 {[%emt 0:01:01]} Bc8 {[%emt 0:01:46]} 15. Rhg1 {[%emt 0:00:47]} Nh6 {[%emt 0:02:15]} 16. fxe5 {[%emt 0:00:56]} dxe5 {[%emt 0:02:49]} 17. d6 {[%emt 0:00:27]} Ng4 {[%emt 0:02:05]} 18. dxc7 {[%emt 0:02:03]} Qxc7 {[%emt 0:01:01]} 19. Nd5 {[%emt 0:00:21]} Qd6 {[%emt 0:03:15]} 20. Rgf1 {[%emt 0:01:26]} f5 {[%emt 0:04:40]} 21. Qg5 {[%emt 0:02:19]} Kf7 {[%emt 0:04:02]} 22. exf5 {[%emt 0:02:38]} gxf5 {[%emt 0:04:29]} 23. Bxg4 {[%emt 0:25:38]} hxg4 {[%emt 0:00:20]} 24. Rxf5+ {[%emt 0:00:16]} Bxf5 {[%emt 0:02:34]} 25. Qxf5+ {[%emt 0:00:07]} Kg7 {[%emt 0:02:17]} 26. Ng5 {[%emt 0:00:59]} Qg6 {[%emt 0:02:47]} 27. Qxe5+ {[%emt 0:00:30]} 1-0

[Event "28th Hit Open-A 2024"]
[Site "Nova Gorica"]
[Date "2024.01.28"]
[Round "4.26"]
[White "Orsatti, Marcello"]
[Black "Petrovcic, Cvetko"]
[Result "1-0"]
[ECO "A10"]
[WhiteElo "1918"]
[BlackElo "1611"]
[Annotator "RC"]
[PlyCount "129"]
[EventDate "2024.01.22"]
[EventType "swiss"]
[EventCountry "SLO"]
[SourceTitle "playchess.com"]
[Source "ChessBase"]
[SourceQuality "1"]
[TimeControl "5400+30"]

1. c4 {[%emt 0:00:09]} f5 {[%emt 0:00:05]} 2. g3 {[%emt 0:00:05]} Nf6 {[%emt 0:00:33]} 3. Bg2 {[%emt 0:00:05]} e6 {[%emt 0:01:15]} 4. Nc3 {[%emt 0:00:05]} Be7 {[%emt 0:00:37]} 5. e4 {[%emt 0:01:05]} fxe4 {[%emt 0:01:08]} 6. Nxe4 {[%emt 0:00:11]} O-O {[%emt 0:01:10]} 7. Ne2 {[%emt 0:00:17]} d5 {[%emt 0:00:05]} 8. Ng5 {[%emt 0:03:57]} Ng4 {[%emt 0:01:57]} 9. Nh3 {[%emt 0:02:08]} Ne5 {[%emt 0:01:40]} 10. cxd5 {[%emt 0:18:07]} Nd3+ {[%emt 0:00:43]} 11. Kf1 {[%emt 0:00:01]} exd5 {[%emt 0:00:31]} 12. Nhf4 {[%emt 0:09:42]} Nxf4 {[%emt 0:01:19]} 13. Nxf4 {[%emt 0:00:06]} c6 {[%emt 0:00:11]} 14. d4 {[%emt 0:02:13]} Na6 {[%emt 0:01:10]} 15. Be3 {[%emt 0:01:52]} Bf5 {[%emt 0:00:54]} 16. a3 {[%emt 0:01:27]} Nc7 {[%emt 0:00:31]} 17. h4 {[%emt 0:03:44]} Bd6 {[%emt 0:00:20]} 18. Qd2 {[%emt 0:01:22]} Qf6 {[%emt 0:01:33]} 19. Kg1 {[%emt 0:02:15]} h6 {[%emt 0:03:12]} 20. h5 {[%emt 0:06:00]} Rae8 {[%emt 0:03:46]} 21. Rh4 {[%emt 0:02:16]} Ne6 {[%emt 0:06:29]} 22. Nxe6 {[%emt 0:06:48]} Rxe6 {[%emt 0:00:23]} 23. Rc1 {[%emt 0:09:21]} Rfe8 {[%emt 0:00:15]} 24. Rc3 {[%emt 0:00:40]} Qe7 {[%emt 0:03:39]} 25. Bf4 {[%emt 0:07:17]} Re2 {[%emt 0:02:45]} 26. Bxd6 {[%emt 0:00:17]} Qxd6 {[%emt 0:00:17]} 27. Qf4 {[%emt 0:00:19]} Qe6 {[%emt 0:04:10]} 28. b4 {[%emt 0:02:52]} Re1+ {[%emt 0:01:08]} 29. Kh2 {[%emt 0:00:15]} Be4 {[%emt 0:01:06]} 30. Re3 {[%emt 0:03:28]} Rxe3 {[%emt 0:01:07]} 31. Qxe3 {[%emt 0:00:10]} Bxg2 {[%emt 0:00:30]} 32. Qxe6+ {[%emt 0:00:17]} Rxe6 {[%emt 0:00:14]} 33. Kxg2 {[%emt 0:00:03]} Re2 {[%emt 0:00:03]} 34. Rf4 {[%emt 0:00:31]} Rd2 {[%emt 0:00:26]} 35. Kf3 {[%emt 0:03:10]} Rd3+ {[%emt 0:00:04]} 36. Kg4 {[%emt 0:00:04]} Rxa3 {[%emt 0:01:24]} 37. Kf5 {[%emt 0:00:05]} Kf7 {[%emt 0:03:18]} 38. Ke5+ {[%emt 0:00:34]} Ke7 {[%emt 0:00:02]} 39. Kf5 {[%emt 0:00:17]} Kf7 {[%emt 0:01:07]} 40. Ke5+ {[%emt 0:00:13]} Kg8 {[%emt 0:02:30]} 41. Kf5 {[%emt 0:00:15]} Ra1 {[%emt 0:00:17]} 42. Kg6 {[%emt 0:00:19]} Re1 {[%emt 0:00:05]} 43. Kf5 {[%emt 0:02:28]} b6 {[%emt 0:00:14]} 44. Rf3 {[%emt 0:00:57]} Kf7 {[%emt 0:01:25]} 45. Ra3 {[%emt 0:01:30]} Re7 {[%emt 0:01:54]} 46. f4 {[%emt 0:00:32]} Kf8 {[%emt 0:01:35]} 47. g4 {[%emt 0:02:25]} Re4 {[%emt 0:01:20]} 48. Rxa7 {[%emt 0:01:38]} Rxd4 {[%emt 0:00:21]} 49. Ra8+ {[%emt 0:00:00]} Ke7 {[%emt 0:00:00]} 50. Ra7+ {[%emt 0:00:10]} Kd6 {[%emt 0:00:00]} 51. Rxg7 {[%emt 0:00:21]} Rxb4 {[%emt 0:00:01]} 52. Rg6+ {[%emt 0:02:25]} Kc5 {[%emt 0:00:40]} 53. Rxh6 {[%emt 0:00:13]} d4 {[%emt 0:07:23]} 54. Re6 {[%emt 0:00:19]} d3 {[%emt 0:00:23]} 55. Re1 {[%emt 0:00:11]} d2 {[%emt 0:00:44]} 56. Rd1 {[%emt 0:00:11]} Rd4 {[%emt 0:00:34]} 57. h6 {[%emt 0:00:19]} Kc4 {[%emt 0:00:32]} 58. h7 {[%emt 0:00:13]} Rd5+ {[%emt 0:01:31]} 59. Kg6 {[%emt 0:00:36]} Rd6+ {[%emt 0:00:06]} 60. Kg5 {[%emt 0:00:13]} Rd8 {[%emt 0:03:18]} 61. Rxd2 {[%emt 0:00:20]} Rxd2 {[%emt 0:00:13]} 62. h8=Q {[%emt 0:00:07]} b5 {[%emt 0:00:19]} 63. f5 {[%emt 0:00:56]} b4 {[%emt 0:00:05]} 64. Qh1 {[%emt 0:00:30]} c5 {[%emt 0:00:02]} 65. Qc1+ {[%emt 0:00:21]} 1-0

[Event "28th Hit Open-A 2024"]
[Site "Nova Gorica"]
[Date "2024.01.28"]
[Round "4.27"]
[White "Horvath, Andras"]
[Black "Belyaletdinov, Leonard"]
[Result "0-1"]
[ECO "B13"]
[WhiteElo "1901"]
[BlackElo "1581"]
[Annotator "NA RC"]
[PlyCount "98"]
[EventDate "2024.01.22"]
[EventType "swiss"]
[EventCountry "SLO"]
[SourceTitle "playchess.com"]
[Source "ChessBase"]
[SourceQuality "1"]
[TimeControl "5400+30"]

1. e4 {[%emt 0:00:06]} c6 {[%emt 0:00:06]} 2. d4 {[%emt 0:00:03]} d5 {[%emt 0:00:06]} 3. exd5 {[%emt 0:00:05]} cxd5 {[%emt 0:00:05]} 4. Bd3 {[%emt 0:00:09]} Nc6 {[%emt 0:00:07]} 5. c3 {[%emt 0:00:05]} Nf6 {[%emt 0:00:05]} 6. Bf4 {[%emt 0:00:06]} Bg4 {[%emt 0:00:12]} 7. Qb3 {[%emt 0:00:06]} Qd7 {[%emt 0:00:12]} 8. Nd2 {[%emt 0:00:10]} e6 {[%emt 0:00:12]} 9. Ngf3 {[%emt 0:00:10]} Bd6 {[%emt 0:00:19]} 10. Bxd6 {[%emt 0:00:09]} Qxd6 {[%emt 0:00:05]} 11. O-O {[%emt 0:00:08]} O-O {[%emt 0:00:07]} 12. Rfe1 {[%emt 0:00:11]} Bxf3 {[%emt 0:00:36]} 13. Nxf3 {[%emt 0:00:04]} Qc7 {[%emt 0:00:07]} 14. Re3 {[%emt 0:11:40]} Ng4 {[%emt 0:01:47]} 15. Re2 {[%emt 0:01:04]} a6 {[%emt 0:01:14]} 16. h3 {[%emt 0:01:52]} Nf6 {[%emt 0:00:40]} 17. Rae1 {[%emt 0:02:19]} b5 {[%emt 0:00:50]} 18. Ne5 {[%emt 0:05:02]} Nd7 {[%emt 0:03:10]} 19. Bb1 {[%emt 0:04:56]} Ncxe5 {[%emt 0:00:42]} 20. dxe5 {[%emt 0:00:06]} Rfd8 {[%emt 0:00:10]} 21. Re3 {[%emt 0:07:47]} Rab8 {[%emt 0:01:44]} 22. h4 {[%emt 0:02:20]} b4 {[%emt 0:01:18]} 23. cxb4 {[%emt 0:04:22]} Qb7 {[%emt 0:02:00]} 24. Qd3 {[%emt 0:02:38]} Nf8 {[%emt 0:00:13]} 25. a3 {[%emt 0:03:21]} a5 {[%emt 0:04:14]} 26. bxa5 {[%emt 0:10:22]} Qxb2 {[%emt 0:00:12]} 27. Rg3 {[%emt 0:03:35]} Ra8 {[%emt 0:02:58]} 28. h5 {[%emt 0:00:30]} Rxa5 {[%emt 0:01:26]} 29. Qe3 {[%emt 0:00:56]} g6 {[%emt 0:08:10]} 30. Qg5 {[%emt 0:02:14]} Re8 {[%emt 0:01:52]} 31. Qf6 {[%emt 0:09:37]} Nd7 {[%emt 0:00:21]} 32. Qf4 {[%emt 0:00:46]} Nf8 {[%emt 0:01:44]} 33. Rf3 {[%emt 0:09:24]} Qb7 {[%emt 0:00:15]} 34. g4 {[%emt 0:03:01]} Qd7 {[%emt 0:01:03]} 35. Kg2 {[%emt 0:02:13]} Ra4 {[%emt 0:00:29]} 36. Qg3 {[%emt 0:04:07]} Qe7 {[%emt 0:05:40]} 37. Bc2 {[%emt 0:04:44]} Rd4 {[%emt 0:00:29]} 38. Rf4 {[%emt 0:00:32]} Rxf4 {[%emt 0:00:24]} 39. Qxf4 {[%emt 0:00:02]} Rc8 {[%emt 0:00:24]} 40. Bd3 {[%emt 0:01:22]} Rc3 {[%emt 0:00:36]} 41. Re3 {[%emt 0:01:22]} Qxa3 {[%emt 0:03:37]} 42. Qf6 {[%emt 0:02:42]} Nd7 {[%emt 0:00:34]} 43. Qd8+ {[%emt 0:00:29]} Kg7 {[%emt 0:02:12]} 44. Qxd7 {[%emt 0:03:28]} Rxd3 {[%emt 0:00:11]} 45. h6+ {[%emt 0:01:53]} Kxh6 {[%emt 0:00:13]} 46. Re1 {[%emt 0:00:39]} Rh3 {[%emt 0:00:26]} 47. g5+ {[%emt 0:00:30]} Kg7 {[%emt 0:00:13]} 48. Re3 {[%emt 0:00:29]} Rxe3 {[%emt 0:00:13]} 49. fxe3 {[%emt 0:00:05]} Qxe3 {[%emt 0:00:00]} 0-1

[Event "28th Hit Open-A 2024"]
[Site "Nova Gorica"]
[Date "2024.01.28"]
[Round "4.28"]
[White "Bajec, Borut"]
[Black "Hozjan, Erik"]
[Result "0-1"]
[ECO "A85"]
[WhiteElo "1703"]
[BlackElo "1897"]
[Annotator "NA RC"]
[PlyCount "66"]
[EventDate "2024.01.22"]
[EventType "swiss"]
[EventCountry "SLO"]
[SourceTitle "playchess.com"]
[Source "ChessBase"]
[SourceQuality "1"]
[TimeControl "5400+30"]

1. d4 {[%emt 0:10:23]} f5 {[%emt 0:00:06]} 2. Nf3 {[%emt 0:00:31]} Nf6 {[%emt 0:00:07]} 3. c4 {[%emt 0:00:15]} e6 {[%emt 0:00:05]} 4. Nc3 {[%emt 0:01:40]} Bb4 {[%emt 0:00:07]} 5. Bd2 {[%emt 0:00:33]} O-O {[%emt 0:00:08]} 6. e3 {[%emt 0:00:18]} b6 {[%emt 0:01:08]} 7. Be2 {[%emt 0:00:22]} Bb7 {[%emt 0:00:16]} 8. O-O {[%emt 0:01:00]} d6 {[%emt 0:01:37]} 9. a3 {[%emt 0:00:58]} Bxc3 {[%emt 0:00:06]} 10. Bxc3 {[%emt 0:00:08]} Ne4 {[%emt 0:00:03]} 11. Rc1 {[%emt 0:01:12]} Nd7 {[%emt 0:00:17]} 12. b4 {[%emt 0:04:47]} Ndf6 {[%emt 0:07:30]} 13. Bb2 {[%emt 0:01:12]} g5 {[%emt 0:00:56]} 14. Nd2 {[%emt 0:01:26]} a5 {[%emt 0:03:57]} 15. Nxe4 {[%emt 0:03:05]} Nxe4 {[%emt 0:00:06]} 16. f3 {[%emt 0:00:16]} Nf6 {[%emt 0:00:05]} 17. c5 {[%emt 0:03:04]} axb4 {[%emt 0:00:19]} 18. axb4 {[%emt 0:00:37]} Nd5 {[%emt 0:00:22]} 19. Qb3 {[%emt 0:01:12]} Qf6 {[%emt 0:04:16]} 20. Ra1 {[%emt 0:09:47]} f4 {[%emt 0:03:12]} 21. e4 {[%emt 0:01:23]} Ne3 {[%emt 0:00:06]} 22. Rfc1 {[%emt 0:02:31]} g4 {[%emt 0:04:41]} 23. c6 {[%emt 0:00:55]} Rxa1 {[%emt 0:00:15]} 24. Bxa1 {[%emt 0:00:22]} Bc8 {[%emt 0:00:09]} 25. fxg4 {[%emt 0:00:30]} Qg5 {[%emt 0:03:54]} 26. Bf3 {[%emt 0:02:42]} Nxg4 {[%emt 0:00:33]} 27. Bxg4 {[%emt 0:01:31]} Qxg4 {[%emt 0:00:04]} 28. Qf3 {[%emt 0:00:16]} Qg5 {[%emt 0:21:40]} 29. e5 {[%emt 0:04:56]} dxe5 {[%emt 0:01:17]} 30. dxe5 {[%emt 0:00:01]} Ba6 {[%emt 0:01:09]} 31. Rc3 {[%emt 0:05:13]} Qxe5 {[%emt 0:16:10]} 32. Qg4+ {[%emt 0:03:24]} Kf7 {[%emt 0:02:50]} 33. Rc1 {[%emt 0:01:12]} Qe3+ {[%emt 0:00:06]} 0-1